Workbook

Sheet Sheet1

Sheet Sheet2
C5: كشف أسعار شراء وبيع المنتجات
C7: م | D7: البيان | E7: رقم المنتج | F7: الاستخدام | G7: سعر الشراء للقطعه | H7: عدد القطع المشراة | I7: سعر أجمالي الكميه | J7: النسبة الضريبيه | K7: أجمالي قيمة النسبة | L7: سعر بيع القطعه الواحدة | M7: اجمالي سعر بيع الكمية
C9: 1276 | E9: R-12735 | F9: داخلي | G9: 40 | H9: 1200 | I9: =H9*G9 -> 48000 | J9: 0.15 | K9: =G9*J9*H9 -> 7200 | L9: =M9/H9 -> 86 | M9: =K9+I9*2 -> 103200
C10: =C9+1 -> 1277 | E10: R-12736 | F10: خارجي | G10: 18 | H10: 60 | I10: 1080 | J10: 0.15 | K10: =J10*G10*H10 -> 162 | L10: 38.7 | M10: 2322
C11: =C10+1 -> 1278 | E11: R-12737 | F11: داخلي | G11: 18 | H11: 69 | I11: 1242 | J11: 0.15 | K11: =J11*G11*H11 -> 186.3 | L11: 38.7 | M11: 2670.3
C12: =C11+1 -> 1279 | E12: R-12738 | F12: خارجي | G12: 9 | H12: 1200 | I12: 10800 | J12: 0.15 | K12: =J12*G12*H12 -> 1620 | L12: 19.35 | M12: 23220
C13: =C12+1 -> 1280 | E13: R-12739 | F13: داخلي | G13: 5 | H13: 1400 | I13: 7000 | J13: 0.15 | K13: =J13*G13*H13 -> 1050 | L13: 10.75 | M13: 15050
C14: =C13+1 -> 1281 | E14: R-12740 | F14: خارجي | G14: 65 | H14: 110 | I14: 7150 | J14: 0.15 | K14: =J14*G14*H14 -> 1072.5 | L14: 139.75 | M14: 15372.5

Sheet Sheet3
C5: كشف أسعار شراء وبيع المنتجات
C7: م | D7: البيان | E7: رقم المنتج | F7: الاستخدام | G7: سعر الشراء للقطعه | H7: عدد القطع المشراة | I7: سعر أجمالي الكميه | J7: النسبة الضريبيه | K7: أجمالي قيمة النسبة | L7: سعر بيع القطعه الواحدة | M7: اجمالي سعر بيع الكمية
C9: 10000 | E9: A-12445 | F9: داخلي | G9: 40 | H9: 1200 | I9: =H9*G9 -> 48000 | J9: 0.15 | K9: =G9*J9*H9 -> 7200 | L9: =M9/H9 -> 86 | M9: =K9+I9*2 -> 103200
C10: =C9+1 -> 10001 | E10: A-12744 | F10: خارجي | G10: 18 | H10: 60 | I10: 1080 | J10: 0.15 | K10: =J10*G10*H10 -> 162 | L10: 38.7 | M10: 2322
C11: =C10+1 -> 10002 | E11: A-12745 | F11: داخلي | G11: 18 | H11: 69 | I11: 1242 | J11: 0.15 | K11: =J11*G11*H11 -> 186.3 | L11: 38.7 | M11: 2670.3
C12: =C11+1 -> 10003 | E12: A-12746 | F12: خارجي | G12: 9 | H12: 1200 | I12: 10800 | J12: 0.15 | K12: =J12*G12*H12 -> 1620 | L12: 19.35 | M12: 23220
C13: =C12+1 -> 10004 | E13: A-12747 | F13: داخلي | G13: 5 | H13: 1400 | I13: 7000 | J13: 0.15 | K13: =J13*G13*H13 -> 1050 | L13: 10.75 | M13: 15050
C14: =C13+1 -> 10005 | E14: A-12748 | F14: خارجي | G14: 65 | H14: 110 | I14: 7150 | J14: 0.15 | K14: =J14*G14*H14 -> 1072.5 | L14: 139.75 | M14: 15372.5
